Cogmind - Beta 16 --- EXPLORER MODE // 2025.11.11 @ 20:39:31 Player: Dylab Result: Destroyed by Y-45 Defender with Beam Rifle Performance ------------- Evolutions (1) 500 Regions Visited (3) 600 Robots Destroyed (7) 35 Value Destroyed (67) 67 Prototype IDs (2) 40 Alien Tech Used (0) 0 Bonus (0) 0 TOTAL SCORE: 1242 Bonus ------- None Cogmind --------- Core Integrity 0/400 Matter 300/300 Energy 99/100 System Corruption 1% Temperature Cool (27) Movement Core (50) Location -9/Storage Parts ------- > --- POWER (1) -------- (None) > --- PROPULSION (3) --- (None) > --- UTILITY (4) ------ Targeting Computer Weapon Shielding > --- WEAPON (2) ------- (None) > --- INVENTORY (5) ---- Hover Unit Peak State ------------ > --- POWER ------------ Light Ion Engine > --- PROPULSION ------- Hover Unit Flight Unit Flight Unit > --- UTILITY ---------- Targeting Computer Weapon Shielding > --- WEAPON ----------- EM Pulse Gun > --- INVENTORY -------- Hover Unit [Rating: 7] Favorites ----------- Power Light Ion Engine Engine Light Ion Engine Propulsion Aluminum Leg Leg Aluminum Leg Hover Unit Hover Unit Flight Unit Flight Unit Utility Targeting Computer Processor Targeting Computer Protection Weapon Shielding Weapon EM Pulse Gun Energy Gun EM Pulse Gun Build | -11 -10 -9 -9 ------- Run | Yrd Mat Mat Sto Slots Evolved 3 | . 1 2 . Power . | . . . . Propulsion 1 | . 1 . . Utility 2 | . . 2 . Weapon . | . . . . Parts Attached 13 | 3 7 1 2 Power 2 | 1 . . 1 Engine 2 | 1 . . 1 Core . | . . . . Reactor . | . . . . Propulsion 8 | . 7 . 1 Treads . | . . . . Leg 4 | . 3 . 1 Wheel . | . . . . Hover 2 | . 2 . . Flight 2 | . 2 . . Utility 2 | 1 . 1 . Device . | . . . . Storage . | . . . . Processor 1 | 1 . . . Hackware . | . . . . Protection 1 | . . 1 . Artifact . | . . . . Weapon 1 | 1 . . . Energy Gun 1 | 1 . . . Energy Cannon . | . . . . Ballistic Gun . | . . . . Ballistic Cannon . | . . . . Launcher . | . . . . Special Weapon . | . . . . Impact Weapon . | . . . . Slashing Weapon . | . . . . Piercing Weapon . | . . . . Special Melee Weapon . | . . . . Unidentified Prototypes . | . . . . Parts Lost 7 | . . 5 2 Power 2 | . . 1 1 Propulsion 4 | . . 3 1 Utility . | . . . . Weapon 1 | . . 1 . Highest Loss Streak 4 | . . 4 1 To Critical Strikes . | . . . . Average Backups . | . . 1 1 Power . | . . . . Propulsion . | . . 1 1 Utility . | . . . . Weapon . | . . . . Tool/Special . | . . . . Unused Backups . | . . . . Power . | . . . . Propulsion . | . . . . Utility . | . . . . Weapon . | . . . . Tool/Special . | . . . . Average Slot Usage (%) 49 | . 65 50 31 Engine 9 | . 12 7 6 Leg 11 | . 22 . 5 Hover 3 | . 3 8 . Flight 2 | . 2 9 . Processor 10 | . 12 10 10 Protection 5 | . . 7 10 Energy Gun 6 | . 12 7 . Peak Build Rating 7 | 3 6 7 5 Average Rating 4 | 2 5 4 3 On Entrance 2 | . 3 6 2 Avg Prop Armor Cover (%) 10 | . 9 10 . Naked Turns . | . . . . Heaviest Build 8 | 5 5 6 8 Greatest Support 30 | 3 30 8 10 Greatest Overweight (x) 2 | 1 1 1 2 Average Overweight (x) . | . . . . Largest Inventory Capacity 5 | 5 5 5 5 Average Capacity 5 | 5 5 5 5 Most Carried 2 | . 2 1 1 Average Carried . | . . 1 1 Final Capacity 5 | 5 5 5 5 Final Carried 1 | . 1 1 1 Class Distribution -------------------- 100% | Hacker-Mutant Dominant Class ---------------- Hacker-Mutant | -10/Materials Hacker-Mutant | -9/Materials Hacker-Mutant | -9/Storage Resources | -11 -10 -9 -9 ----------- Run | Yrd Mat Mat Sto Matter Collected 340 | 188 132 . 20 Remotely . | . . . . Salvage Created 194 | . 194 . . Parts 19 | . 19 . . Haulers Intercepted . | . . . . Recyclers Shooed 3 | . 2 1 . Parts Field Recycled . | . . . . Retrieved Matter . | . . . . Parts Self-Destructed . | . . . . Prevented . | . . . . Parts Restored . | . . . . Kills | -11 -10 -9 -9 ------- Run | Yrd Mat Mat Sto Combat Hostiles Destroyed 4 | . 4 . . Guns 3 | . 3 . . AOE 1 | . 1 . . Classes Destroyed 4 | . 4 . . Builder 1 | . 1 . . Recycler 1 | . 1 . . Watcher 1 | . 1 . . Swarmer 4 | . 4 . . Best Kill Streak 5 | . 5 . . Combat Bots Only 2 | . 2 . . Max Kills in Single Turn 1 | . 1 . . Gunslinging . | . . . . Exploded 1 | . 1 . . Melee . | . . . . Uniques/NPCs Destroyed . | . . . . Combat | -11 -10 -9 -9 -------- Run | Yrd Mat Mat Sto Hostile Shots Fired 144 | . 17 47 80 Missed 42 | . 6 15 21 Hits 102 | . 11 32 59 Projectile 102 | . 11 32 59 Critical Strikes 2 | . . 1 1 Damage Taken 772 | . 48 269 455 Core 415 | . 11 122 282 Absorbed by Shields . | . . . . Redirected to Shielding 12 | . . 12 . Ignored by Resistances 480 | . 36 164 280 Core Remaining (%) 97 | 100 95 . . Volleys Fired 16 | . 12 4 . Largest 1 | . 1 1 . Hottest 40 | . 40 40 . Shots Fired 16 | . 12 4 . Gun 16 | . 12 4 . Cannon . | . . . . Launcher . | . . . . Special . | . . . . Kinetic . | . . . . Thermal . | . . . . Explosive . | . . . . Electromagnetic 16 | . 12 4 . Robot Hit Streak 8 | . 8 2 . Robot Miss Streak 2 | . 2 1 . Penetration Max . | . . . . Secondary Targets . | . . . . Shots Hit Robots 11 | . 8 3 . Core Hits 17 | . 8 3 6 Critical Kills . | . . . . Critical Parts Destroyed . | . . . . Critical Strikes . | . . . . Melee Attacks . | . . . . Impact . | . . . . Slashing . | . . . . Piercing . | . . . . Sneak Attacks . | . . . . Combat Hostiles . | . . . . Follow-up Attacks . | . . . . Damage Inflicted 340 | . 190 61 89 Guns 167 | . 136 31 . Cannons . | . . . . Explosions 54 | . 54 . . Melee . | . . . . Ramming 119 | . . 30 89 Kinetic . | . . . . Thermal 54 | . 54 . . Explosive . | . . . . Electromagnetic 167 | . 136 31 . Impact . | . . . . Slashing . | . . . . Piercing . | . . . . Highest Corruption 1 | . . . 1 Average Corruption 1 | . . . 1 Corruption Purged . | . . . . Corruption Blocked . | . . . . Overload Shots . | . . . . Overflow Damage . | . . . . Projectiles . | . . . . Explosions . | . . . . Melee . | . . . . Knockbacks . | . . . . Impact . | . . . . Kinetic . | . . . . Secondary . | . . . . Self-Inflicted Damage 22 | . . 14 8 Shots . | . . . . Rammed 23 | . . 4 19 Targets Rammed 56 | . . 4 52 Kicked 33 | . . . 33 Crushed . | . . . . Highest Temperature 23 | . 8 23 . Average Temperature 6 | . 4 9 . Received Heat Transfer 546 | . . 174 372 Siege Activations . | . . . . Martial Activations . | . . . . Shielding Activations . | . . . . Robots Disrupted . | . . . . Combat Hostiles . | . . . . Robots Corrupted . | . . . . Combat Hostiles . | . . . . Parts Fried . | . . . . Impact Corruptions . | . . . . Robots Melted . | . . . . Combat Hostiles . | . . . . Parts Melted . | . . . . Heat Transferred 100 | . 100 . . Parts Sabotaged . | . . . . Parts Stolen . | . . . . Parts Stripped . | . . . . Power Chain Reactions 1 | . 1 . . Alert | -11 -10 -9 -9 ------- Run | Yrd Mat Mat Sto Maximum Alert Level . | . . . . Low Security (%) 100 | 100 100 100 100 Level 1 . | . . . . Level 2 . | . . . . Level 3 . | . . . . Level 4 . | . . . . Level 5 . | . . . . High Security . | . . . . Max Security . | . . . . Peak Influence 45 | . 44 45 45 Initial 13 | . . 9 13 Average 6 | . 10 5 4 Influence Increases 229 | . 121 63 45 Destroy 0b10 Robot/C 80 | . 80 . . Destroy 0b10 Robot/NC 15 | . 15 . . Destroy Leader 22 | . 22 . . Successful Hack 3 | . . 3 . Destroy Structure 4 | . 4 . . Lose Combat Pursuer 105 | . . 60 45 Influence Decreases 199 | . 87 52 60 Entered New Map 57 | . . 25 32 Time Decay 127 | . 87 12 28 Lost Part 15 | . . 15 . Squads Dispatched 2 | . . 1 1 Investigation . | . . . . Extermination . | . . . . Reinforcement 2 | . . 1 1 Assault . | . . . . Garrison . | . . . . Intercept . | . . . . Searches Triggered . | . . . . Construction Impeded . | . . . . Haulers Reinforced . | . . . . Active Scanning Responses . | . . . . Cargo Convoy Interrupts . | . . . . Stealth | -11 -10 -9 -9 --------- Run | Yrd Mat Mat Sto Distress Signals 2 | . 1 . 1 Communications Jammed . | . . . . Distress Signals . | . . . . Times Spotted 22 | . 7 8 7 Peak Tracking Total 6 | . 3 6 4 Tactical Retreats 3 | . . 2 1 Traps | -11 -10 -9 -9 ------- Run | Yrd Mat Mat Sto Traps Triggered 1 | . . . 1 Indirectly . | . . . . Trap Hack Attempts . | . . . . Triggered . | . . . . Disarmed . | . . . . Reprogrammed . | . . . . Reused . | . . . . Traps Extracted . | . . . . Installed . | . . . . Triggered . | . . . . Machines | -11 -10 -9 -9 ---------- Run | Yrd Mat Mat Sto Machines Disabled . | . . . . Max in Single Turn . | . . . . Machines Repaired . | . . . . Machines Dismantled . | . . . . Machines Sabotaged . | . . . . Overloaded Fab Kills . | . . . . Hacking | -11 -10 -9 -9 --------- Run | Yrd Mat Mat Sto Machines Accessed 3 | . 1 1 1 Terminals 3 | . 1 1 1 Fabricators . | . . . . Repair Stations . | . . . . Recycling Units . | . . . . Scanalyzers . | . . . . Garrison Access . | . . . . Total Hacks 6 | . 1 3 2 Successful 6 | . 1 3 2 Failed . | . . . . Catastrophic . | . . . . Database Lockouts . | . . . . Manual . | . . . . Terminals 6 | . 1 3 2 Fabricators . | . . . . Repair Stations . | . . . . Recycling Units . | . . . . Scanalyzers . | . . . . Garrison Access . | . . . . Terminal Hacks 6 | . 1 3 2 Record 3 | . . 2 1 Prototype ID Bank 1 | . . 1 . Level Access Points 1 | . 1 . . Recall Extermination 1 | . . . 1 Fabricator Hacks . | . . . . Repair Station Hacks . | . . . . Recycling Unit Hacks . | . . . . Scanalyzer . | . . . . Garrison Access Hacks . | . . . . Unauthorized Hacks . | . . . . Terminals . | . . . . Fabricators . | . . . . Repair Stations . | . . . . Recycling Units . | . . . . Scanalyzers . | . . . . Garrison Access . | . . . . Data Cores Recovered . | . . . . Used . | . . . . Hacking Detections . | . . . . Full Trace Events . | . . . . Feedback Events . | . . . . Feedback Blocked . | . . . . Robot Schematics Acquired . | . . . . Robots Built . | . . . . Authchips . | . . . . Time . | . . . . Total Robot Build Rating . | . . . . Part Schematics Acquired . | . . . . Parts Built . | . . . . Authchips . | . . . . Time . | . . . . Total Part Build Rating . | . . . . Part Studies Acquired . | . . . . Parts Repaired . | . . . . Time . | . . . . Parts Recycled . | . . . . Recycled Matter . | . . . . Retrieved Matter . | . . . . Retrieved Components . | . . . . Parts Scanalyzed . | . . . . Part Schematics Acquired . | . . . . Parts Damaged . | . . . . Bothacking | -11 -10 -9 -9 ------------ Run | Yrd Mat Mat Sto Used RIF Installer . | . . . . Robots Hacked . | . . . . Non-combat . | . . . . Combat . | . . . . Robot Hacks Applied . | . . . . Relay Couplers Released . | . . . . Fabnet Peak Effective % . | . . . . Robots Rewired . | . . . . Allies Hacked . | . . . . Hacks Repelled . | . . . . Allies | -11 -10 -9 -9 -------- Run | Yrd Mat Mat Sto Total Allies . | . . . . Largest Group . | . . . . Highest-Rated Group . | . . . . Highest-Rated Ally . | . . . . Total Orders . | . . . . Ally Attacks . | . . . . Total Damage . | . . . . Kills . | . . . . Allies Corrupted . | . . . . Allies Melted . | . . . . Intel | -11 -10 -9 -9 ------- Run | Yrd Mat Mat Sto Active Infowar (turns) . | . . . . Robot Analysis Total . | . . . . Derelict Logs Recovered . | . . . . Drone Launches . | . . . . Drone Recoveries . | . . . . Exploration | -11 -10 -9 -9 ------------- Run | Yrd Mat Mat Sto Turns Passed 654 | 88 237 119 210 Spaces Moved 629 | 95 204 165 165 Core 325 | 95 42 76 112 Treads . | . . . . Legs 161 | . 108 . 53 Wheels . | . . . . Hover 22 | . 22 . . Flight 121 | . 32 89 . Fastest Speed 37 | 50 37 37 50 Average Speed 84 | 88 97 63 87 Slowest Speed 150 | 100 120 120 150 Overloaded Moves . | . . . . Propulsion Burnouts . | . . . . Robots Hopped 1 | . 1 . . Potential Cave-ins . | . . . . Cave-ins Triggered . | . . . . Exploration Rate (%) 16 | 3 23 16 25 Regions Visited 3 Branch Regions 1 Pre-discovered Areas . | . . . . Known Exits Taken 3 | 1 1 1 . Unknown Exits Taken . | . . . . Scrap Searched . | . . . . Spaces Dug . | . . . . Terrain Destroyed 4 | . 4 . . Melee . | . . . . Projectile . | . . . . AOE 4 | . 4 . . Terrain Rammed . | . . . . Walls Destroyed . | . . . . Machines Disabled . | . . . . Actions | -11 -10 -9 -9 --------- Run | Yrd Mat Mat Sto Total 715 | 97 226 173 219 Wait . | . . . . Move 624 | 94 201 164 165 Hop 1 | . 1 . . Pick Up 1 | . 1 . . Fast Attach 9 | 3 3 1 2 Attach 2 | . 2 . . Detach 2 | . 2 . . Swap 4 | . 4 . . Drop . | . . . . Fire 16 | . 12 4 . Melee . | . . . . Ram 23 | . . 4 19 Kick 33 | . . . 33 Crush . | . . . . Escape Stasis . | . . . . Rewire . | . . . . Trap . | . . . . Miscellaneous . | . . . . Route ------- -11/Scrapyard -10/Materials (discovered 3 exits: *Mat x3) -9/Materials -9/Storage History --------- Turn | Location | Event 13 | -11/Scrapyard | Identified exit to Materials 13 | -11/Scrapyard | Discovered exit to Materials (range 15) 89 | -11/Scrapyard | Entered Materials 89 | -10/Materials | Evolved 1 slot: Propulsion x1 194 | -10/Materials | Identified exit to Materials 326 | -10/Materials | Entered another Materials area 326 | -9/Materials | Evolved 2 slots: Utility x2 329 | -9/Materials | Build established: Hacker-Mutant 427 | -9/Materials | Identified exit to Storage 427 | -9/Materials | Discovered exit to Storage (range 8) 445 | -9/Materials | Entered Storage 456 | -9/Storage | Lost 4 parts (1p2n1w) 575 | -9/Storage | Core integrity fell below 50% 608 | -9/Storage | Core integrity fell below 20% 655 | -9/Storage | Destroyed by Y-45 Defender with Beam Rifle Last Messages --------------- 00535_ Kicked G-34 Mercenary out of the way. 00541_ Kicked G-34 Mercenary. 00549_ Kicked G-34 Mercenary out of the way. 00558_ Kicked G-34 Mercenary. 00572_ Aluminum Leg destroyed. 00572_ Slammed into G-34 Mercenary. 00572_ Destabilizing: System interference. 00572_ Targeting Computer temporarily disabled. 00574_ Slammed into G-34 Mercenary. 00587_ Destabilizing: System corrupted (+1). 00589_ Slammed into G-34 Mercenary. 00589_ Destabilizing: Core damaged (-8). 00593_ Slammed into G-34 Mercenary. 00605_ Imp. Ion Engine destroyed. 00606_ Slammed into G-34 Mercenary. 00622_ Slammed into B-36 Bruiser. 00629_ Slammed into A-02 Transporter. 00646_ Slammed into Y-45 Defender. 00652_ Connecting with Door Terminal... 00655_ Critical hit (Burn: +37). Map ----- +----------------------------------------------------+ | | | | | | | | | | | | | | | | | | | | | | | | | | | | | | | | | | | | | | | | | | | | | | | ???????????????????????????????? | | ????????????????????????#####??? | | ????????????????????????#@!!#??? | | ????????????????????????#!!!#??? | | ????????????????????????#" "##?? | | ????????????????????????# T#?? | | ????????????????????????##Y###?? | | ????????????????????????# #??? | | ????????????????????????# % #??? | | ????????????????????????# #??? | | ????????????????????????## ##??? | | ?????????????????????????# #???? | | ?????????????????????????# #???? | | ?????????????????????????# #???? | | ?????????????????????????# #???? | | ???????????????????#?????# #???? | | ??????????????????? ?????# #???? | | ?????????????????? ????# ##??? | | ??????????????????"" ?#### "#??? | | ????????????????#""" ?# T#??? | | ????????????????#""" ?# "#??? | | ????????????????#""" # ##??? | | ????????????????#""" + #???? | | ????????????????# # ####???? | | ????????????????####/## ####???? | | ???????????????????# + # | | ???????????????????# # # | +----------------------------------------------------+ Best States ------------- Heat Dissipation 28 Energy Generation 12 Energy Capacity 265 Matter Stores 300 Matter Capacity 300 Sight Range 16 Terrain Scan Density 10 Resistance: KI 35 Resistance: TH 35 Resistance: EX 35 Resistance: EM 35 Resistance: I 35 Resistance: S 35 Resistance: P 35 Weapon Shielding 33 Evasion (%) 62 Targeting Accuracy 5 Offensive Hacking 20 Item Schematics ----------------- None Robot Schematics ------------------ None Fabricated ------------ Nothing Repaired ---------- Nothing Studied --------- None Alien Tech Used ----------------- None Achievements -------------- None Challenges ------------ None Game ------ Seed AntimatterGatlingSink Manual? 0 Play Time 00:08:53 Cumulative 41.6 hours Start 2025.11.11 @ 20:31:34 End 2025.11.11 @ 20:39:31 Sessions 1 Manual Loads 0 Difficulty Explorer Special Mode None Game No. 39 Rogue 0 Adventurer 2 Explorer 37 Win Type - Total 0 Types 0/0/0/0/0/0/0/0/0/0 Lore% 8 Gallery% 36 Achievement% 18 Wizard Run 0 Options --------- Layout 0 ASCII 0 Keyboard 0 Movement Numpad Keybinds 1 Fullscreen 1 Font 24/Smallcaps Map View 38x28 Zoom Use 100% Tactical HUD 1 Map Filters NONE Filters NONE Steam 1 RUN: b96746d6-59ba-4f54-b900-9c4179a7e035